[Event "NED-ch U14 Girls 2019"]
[Site "Assen"]
[Date "2019.05.04"]
[Round "7.7"]
[White "Molanus, Eva"]
[Black "Bogouslavskii, Veronique"]
[Result "1-0"]
[ECO "D35"]
[WhiteElo "1258"]
[BlackElo "1247"]
[Annotator "NA RC"]
[PlyCount "75"]
[EventDate "2019.04.28"]
[EventType "swiss"]
[EventCountry "NED"]
[SourceTitle "playchess.com"]
[Source "ChessBase"]
[SourceQuality "1"]
[TimeControl "40/5400+30:1800+30"]

1. d4 {[%emt 0:00:00]} d5 {[%emt 0:00:00]} 2. c4 {[%emt 0:00:00]} e6 {[%emt 0:00:00]} 3. Nc3 {[%emt 0:00:00]} Nf6 {[%emt 0:00:07]} 4. cxd5 {[%emt 0:00:00]} exd5 {[%emt 0:00:15]} 5. Bg5 {[%emt 0:00:16]} Nbd7 {[%emt 0:00:33]} 6. Nxd5 {[%emt 0:01:36]} Nxd5 {[%emt 0:00:31]} 7. Nf3 {[%emt 0:08:26]} Bb4+ {[%emt 0:01:53]} 8. Bd2 {[%emt 0:00:40]} Bxd2+ {[%emt 0:00:57]} 9. Qxd2 {[%emt 0:00:44]} O-O {[%emt 0:00:39]} 10. e4 {[%emt 0:02:59]} N5f6 {[%emt 0:03:37]} 11. e5 {[%emt 0:09:04]} Nd5 {[%emt 0:01:30]} 12. Bd3 {[%emt 0:02:10]} N7b6 {[%emt 0:03:20]} 13. O-O {[%emt 0:03:43]} Bg4 {[%emt 0:01:26]} 14. Kh1 {[%emt 0:07:22]} Bxf3 {[%emt 0:10:53]} 15. gxf3 {[%emt 0:00:22]} Qh4 {[%emt 0:03:42]} 16. Rg1 {[%emt 0:04:23]} Qf4 {[%emt 0:06:44]} 17. Qe2 {[%emt 0:06:45]} Qxd4 {[%emt 0:10:58]} 18. Rg4 {[%emt 0:10:35]} Nf4 {[%emt 0:08:15]} 19. Qd2 {[%emt 0:05:46]} Qxd3 {[%emt 0:00:54]} 20. Qxf4 {[%emt 0:00:49]} h5 {[%emt 0:29:18]} 21. Rg5 {[%emt 0:09:51]} Qh7 {[%emt 0:04:48]} 22. Rag1 {[%emt 0:02:34]} g6 {[%emt 0:03:01]} 23. Qe4 {[%emt 0:04:27]} Rfe8 {[%emt 0:02:02]} 24. f4 {[%emt 0:02:51]} Kh8 {[%emt 0:01:09]} 25. Qxb7 {[%emt 0:01:15]} Qg8 {[%emt 0:01:06]} 26. Qxc7 {[%emt 0:01:11]} Qf8 {[%emt 0:00:22]} 27. Qc6 {[%emt 0:00:37]} Qe7 {[%emt 0:00:45]} 28. Rxh5+ {[%emt 0:01:14]} Kg7 {[%emt 0:00:55]} 29. f5 {[%emt 0:01:26]} Qxe5 {[%emt 0:01:10]} 30. Rh7+ {[%emt 0:03:11]} Kxh7 {[%emt 0:01:46]} 31. fxg6+ {[%emt 0:00:18]} Kg7 {[%emt 0:00:22]} 32. gxf7+ {[%emt 0:00:20]} Kxf7 {[%emt 0:00:32]} 33. Qb7+ {[%emt 0:01:15]} Qe7 {[%emt 0:00:23]} 34. Qf3+ {[%emt 0:00:20]} Qf6 {[%emt 0:00:29]} 35. Qh5+ {[%emt 0:00:27]} Ke7 {[%emt 0:01:17]} 36. Qh7+ {[%emt 0:00:22]} Kd8 {[%emt 0:00:35]} 37. Rd1+ {[%emt 0:00:37]} Kc8 {[%emt 0:00:11]} 38. Rc1+ {[%emt 0:00:16]} 1-0

[Event "NED-ch U14 Girls 2019"]
[Site "Assen"]
[Date "2019.05.04"]
[Round "7.8"]
[White "Bruggink, Lyne"]
[Black "Ubbink, Anouk"]
[Result "1-0"]
[ECO "B72"]
[WhiteElo "1425"]
[BlackElo "1304"]
[Annotator "NA RC"]
[PlyCount "77"]
[EventDate "2019.04.28"]
[EventType "swiss"]
[EventCountry "NED"]
[SourceTitle "playchess.com"]
[Source "ChessBase"]
[SourceQuality "1"]
[TimeControl "40/5400+30:1800+30"]

1. e4 {[%emt 0:00:00]} c5 {[%emt 0:00:00]} 2. Nf3 {[%emt 0:00:00]} d6 {[%emt 0:00:00]} 3. d4 {[%emt 0:00:00]} cxd4 {[%emt 0:00:00]} 4. Nxd4 {[%emt 0:00:00]} Nf6 {[%emt 0:00:00]} 5. Nc3 {[%emt 0:00:30]} g6 {[%emt 0:00:01]} 6. Bc4 {[%emt 0:00:32]} Bg7 {[%emt 0:00:07]} 7. O-O {[%emt 0:01:05]} O-O {[%emt 0:00:10]} 8. h3 {[%emt 0:00:26]} Nc6 {[%emt 0:00:12]} 9. Be3 {[%emt 0:04:26]} Nxd4 {[%emt 0:02:13]} 10. Bxd4 {[%emt 0:00:16]} Qc7 {[%emt 0:01:13]} 11. Qd3 {[%emt 0:01:16]} a6 {[%emt 0:03:44]} 12. Rfe1 {[%emt 0:02:55]} b5 {[%emt 0:02:21]} 13. Bd5 {[%emt 0:01:32]} Nxd5 {[%emt 0:01:03]} 14. Nxd5 {[%emt 0:00:09]} Qb7 {[%emt 0:02:00]} 15. Bxg7 {[%emt 0:00:53]} Kxg7 {[%emt 0:00:14]} 16. Qd4+ {[%emt 0:05:26]} e5 {[%emt 0:03:12]} 17. Qd3 {[%emt 0:01:52]} f5 {[%emt 0:02:08]} 18. Nc3 {[%emt 0:07:48]} fxe4 {[%emt 0:02:26]} 19. Qxd6 {[%emt 0:01:49]} Qf7 {[%emt 0:06:20]} 20. Qxe5+ {[%emt 0:00:48]} Kg8 {[%emt 0:00:33]} 21. Nxe4 {[%emt 0:01:25]} Bb7 {[%emt 0:01:11]} 22. f3 {[%emt 0:00:43]} Bxe4 {[%emt 0:01:47]} 23. Qxe4 {[%emt 0:00:32]} Rae8 {[%emt 0:01:23]} 24. Qc6 {[%emt 0:01:32]} Qa7+ {[%emt 0:02:05]} 25. Kh1 {[%emt 0:03:14]} Rc8 {[%emt 0:01:53]} 26. Qd5+ {[%emt 0:00:39]} Kh8 {[%emt 0:00:46]} 27. c3 {[%emt 0:00:11]} Rcd8 {[%emt 0:00:51]} 28. Qe5+ {[%emt 0:00:51]} Kg8 {[%emt 0:00:28]} 29. Rad1 {[%emt 0:00:54]} Qf2 {[%emt 0:04:32]} 30. Rxd8 {[%emt 0:01:34]} Rxd8 {[%emt 0:03:24]} 31. Qe6+ {[%emt 0:00:14]} Kg7 {[%emt 0:00:27]} 32. Qe7+ {[%emt 0:00:37]} Kh6 {[%emt 0:00:06]} 33. Re2 {[%emt 0:06:29]} Rd1+ {[%emt 0:01:45]} 34. Kh2 {[%emt 0:00:20]} Qg1+ {[%emt 0:02:18]} 35. Kg3 {[%emt 0:00:16]} Rd5 {[%emt 0:04:07]} 36. Qh4+ {[%emt 0:00:35]} Kg7 {[%emt 0:01:09]} 37. Re7+ {[%emt 0:00:37]} Kg8 {[%emt 0:00:28]} 38. Qxh7+ {[%emt 0:00:07]} Kf8 {[%emt 0:01:22]} 39. Qf7# {[%emt 0:00:38]} 1-0